Cogmind - Beta 13 @@@ ROGUE MODE // 2024.06.24 @ 07:54:44 Player: puppuppit Result: Destroyed by Striker with Compact Linear Accelerator Performance ------------- Evolutions (5) 2500 Regions Visited (18) 3600 Robots Destroyed (415) 2075 Value Destroyed (20276) 20276 Prototype IDs (33) 660 Alien Tech Used (0) 0 Bonus (17787) 17787 TOTAL SCORE: 46898 Bonus ------- Triggered High Security 1500 High Alert Combat Kills 7707 Follower Combat Kills 2251 Entered Garrisons 1200 Used RIF Installer 5000 MAIN.C Attacked Warlord 500 Warlord Defense Kills 478 Friendly Fire -849 Cogmind --------- Core Integrity 0/1000 Matter 36/300 Energy 50/100 System Corruption 14% Temperature Cool (0) Movement Core (50) Location -5/Warlord Parts ------- > --- POWER (2) -------- (None) > --- PROPULSION (7) --- (None) > --- UTILITY (5) ------ (None) > --- WEAPON (3) ------- (None) > --- INVENTORY (5) ---- Advanced Heat Sink Power Bank KE Penetrator Molecular Deconstructor Peak State ------------ > --- POWER ------------ Micro Fission Core Micro Fission Core > --- PROPULSION ------- Improved Cesium-ion Thruster Nuclear Pulse Array Nuclear Pulse Array Nuclear Pulse Array > --- UTILITY ---------- Advanced Heat Sink Medium Storage Unit Advanced Signal Interpreter Recoil Nullifier Relay Coupler [NC] > --- WEAPON ----------- Variable Charge Gun KE Penetrator KE Penetrator > --- INVENTORY -------- Nuclear Pulse Array Nuclear Pulse Array Nuclear Pulse Array Advanced Shield Generator Power Bank Fusion Bomb Launcher Advanced Remote Datajack [Rating: 95] Favorites ----------- Power Micro Nuclear Core Engine Light Ion Engine Power Core Micro Nuclear Core Propulsion Gravmag System Leg Cargo Legs Wheel Wheel Hover Unit Gravmag System Flight Unit Nuclear Pulse Array Utility Relay Coupler [NC] Device Advanced Heat Sink Storage Small Storage Unit Processor Improved Launcher Guidance Computer Hackware Relay Coupler [NC] Protection Powered Armor Weapon Improved Light Cannon Energy Gun Heavy EM Shotgun Energy Cannon Heavy Phase Cannon Ballistic Gun Heavy Machine Gun Ballistic Cannon Improved Light Cannon Launcher Heavy Missile Launcher Special Weapon Remote Datajack Impact Weapon Heavy Mace Special Melee Weapon Datajack Build | -11 -10 -10 -8 -8 -8 -8 -8 -8 -7 -7 -7 -7 -6 -6 -5 -5 -5 -5 ------- Run | Yrd Mat Sub Mat Gar Mat Gar Mat Gar Fac Gar Fac Gar Fac Gar Fac Upp Upp War Slots Evolved 10 | . . . 4 . . . . . 2 . . . 2 . 2 . . . Power 1 | . . . . . . . . . . . . . 1 . . . . . Propulsion 5 | . . . 2 . . . . . 1 . . . 1 . 1 . . . Utility 3 | . . . 1 . . . . . 1 . . . . . 1 . . . Weapon 1 | . . . 1 . . . . . . . . . . . . . . . Parts Attached 491 | 7 23 21 43 37 6 30 20 33 4 32 41 19 28 51 60 23 3 10 Power 53 | 1 1 2 6 7 1 2 2 2 . . 2 . 3 9 10 3 1 1 Engine 17 | 1 1 2 1 1 . . 2 1 . . . . . 4 4 . . . Core 36 | . . . 5 6 1 2 . 1 . . 2 . 3 5 6 3 1 1 Reactor . | . . . . . . . . . . . . . . . . . . . Propulsion 124 | 3 5 4 17 5 1 6 5 12 . 6 19 3 11 13 10 1 1 2 Treads . | . . . . . . . . . . . . . . . . . . . Leg 1 | . . . 1 . . . . . . . . . . . . . . . Wheel 5 | 3 2 . . . . . . . . . . . . . . . . . Hover 66 | . 3 3 7 5 1 5 . 2 . 2 18 3 11 6 . . . . Flight 52 | . . 1 9 . . 1 5 10 . 4 1 . . 7 10 1 1 2 Utility 150 | 1 5 3 16 9 3 10 8 10 4 15 9 11 7 13 13 12 . 1 Device 51 | . 1 1 5 5 . 4 . . 1 6 . 2 4 8 5 8 . 1 Storage 5 | 1 . . 1 . . . 1 . . . . . . . 2 . . . Processor 14 | . 1 . 2 . . 1 . . . 1 4 2 . 1 2 . . . Hackware 51 | . . 1 2 . . 4 7 10 3 8 2 6 2 2 4 . . . Protection 29 | . 3 1 6 4 3 1 . . . . 3 1 1 2 . 4 . . Artifact . | . . . . . . . . . . . . . . . . . . . Weapon 164 | 2 12 12 4 16 1 12 5 9 . 11 11 5 7 16 27 7 1 6 Energy Gun 19 | . . . 1 3 . 1 2 . . 1 . . 1 3 7 . . . Energy Cannon 1 | . . . . . . . . . . . . . . . . 1 . . Ballistic Gun 37 | 2 1 . 1 . . . 2 4 . 3 . . 5 4 10 4 . 1 Ballistic Cannon 48 | . 6 9 2 13 1 8 1 . . 4 2 2 . . . . . . Launcher 38 | . 5 3 . . . 1 . 1 . 1 4 1 1 6 9 1 1 4 Special Weapon 18 | . . . . . . 2 . 4 . 2 2 2 . 3 1 1 . 1 Impact Weapon 2 | . . . . . . . . . . . 2 . . . . . . . Slashing Weapon . | . . . . . . . . . . . . . . . . . . . Piercing Weapon . | . . . . . . . . . . . . . . . . . . . Special Melee Weapon 1 | . . . . . . . . . . . 1 . . . . . . . Unidentified Prototypes 7 | . . 1 4 . . . . . . . 1 . . . . 1 . . Parts Lost 102 | . 1 5 2 4 1 10 2 2 2 4 6 3 6 23 17 . 2 12 Power 11 | . . 2 . 1 . 1 . . . . . . . 4 2 . . 1 Propulsion 47 | . 1 1 . 2 1 6 2 2 1 1 2 2 2 11 6 . 2 5 Utility 19 | . . . . . . 2 . . 1 1 2 1 1 5 2 . . 4 Weapon 25 | . . 2 2 1 . 1 . . . 2 2 . 3 3 7 . . 2 Highest Loss Streak 11 | . 1 1 1 1 1 5 1 2 1 1 3 2 3 5 6 . 1 11 To Critical Strikes 1 | . . . . . . . . . . . . . . . . . . 1 Average Slot Usage (%) 84 | . 97 89 88 93 98 82 87 93 77 81 85 97 88 70 70 62 65 54 Engine 2 | . 14 5 . 1 . . 5 3 . . . . . 1 1 . . . Core 5 | . . . 7 7 9 6 . 5 7 7 7 7 12 9 6 5 5 5 Hover 18 | . 9 27 17 35 36 22 9 1 15 6 22 37 30 14 . . . . Flight 9 | . . . 16 . . 4 22 33 12 22 11 . . 8 19 19 17 16 Device 5 | . 2 4 4 9 9 6 . . . 3 . 1 2 11 8 7 11 10 Storage 3 | . 9 . 6 9 9 9 2 . . . . . . . 4 5 5 4 Processor 2 | . 4 2 1 . . . . . . 3 3 8 6 2 2 2 . . Hackware 10 | . . 10 3 . . 5 23 26 25 22 16 10 11 8 10 5 5 . Protection 4 | . 9 8 5 8 8 4 . . . . 5 7 3 . . 4 5 4 Energy Gun 1 | . . . 5 3 . 1 1 . . . . . . 2 4 . . . Ballistic Gun 3 | . 6 . . . . . 8 13 . . 2 . 4 6 7 2 11 3 Ballistic Cannon 9 | . 18 26 17 18 27 13 1 . . 2 3 6 3 . . . . . Launcher 2 | . 2 . . . . 4 . 3 7 5 5 7 4 . . 1 . 2 Special Weapon 2 | . . . . . . 3 10 6 7 5 1 6 3 . . . . 1 Naked Turns 1 | . . . . . . . . . . . . . . . . . . 1 Heaviest Build 48 | 12 17 26 31 36 37 33 17 18 19 32 44 42 48 46 46 43 43 39 Greatest Support 64 | 26 20 12 36 31 30 29 18 20 20 33 45 42 57 64 45 43 43 39 Greatest Overweight (x) 2 | . . 2 2 1 1 1 1 1 . 1 2 2 . 2 1 . 1 1 Average Overweight (x) . | . . . . . . . . . . . . . . . . . . . Largest Inventory Capacity 10 | 8 8 5 8 8 8 8 8 5 5 5 5 5 5 5 10 10 10 10 Average Capacity 6 | 7 6 5 7 8 8 8 5 5 5 5 5 5 5 5 9 10 10 9 Most Carried 10 | 4 8 5 8 8 8 8 8 5 5 5 5 5 5 5 10 10 10 10 Average Carried 6 | 1 6 4 6 7 7 7 5 4 4 4 4 4 4 4 8 8 9 8 Final Capacity 10 | 8 5 5 8 8 8 8 5 5 5 5 5 5 5 5 10 10 10 10 Final Carried 10 | 4 5 5 8 8 8 8 5 5 5 5 5 5 4 5 10 10 8 9 Class Distribution -------------------- 33% | Mutant 11% | Tank 8% | Gunner 8% | Bothacker-Gunner 6% | Scavenger-Sprinter 6% | Sprinter 6% | Bothacker-Sprinter 4% | Scavenger-Mutant 3% | Commander-Gunner Dominant Class ---------------- Mutant | -10/Materials Mutant | -10/Subcaves Tank | -8/Materials Mutant | -8/Garrison Tank | -8/Materials Scavenger-Tank | -8/Garrison Bothacker-Sprinter | -8/Materials Bothacker-Sprinter | -8/Garrison Bothacker-Gunner | -7/Factory Bothacker-Sprinter | -7/Garrison Mutant | -7/Factory Commander-Gunner | -7/Garrison Gunner | -6/Factory Mutant | -6/Garrison Gunner | -5/Factory Mutant | -5/Upper Caves Mutant | -5/Upper Caves Mutant | -5/Warlord Resources | -11 -10 -10 -8 -8 -8 -8 -8 -8 -7 -7 -7 -7 -6 -6 -5 -5 -5 -5 ----------- Run | Yrd Mat Sub Mat Gar Mat Gar Mat Gar Fac Gar Fac Gar Fac Gar Fac Upp Upp War Matter Collected 14801 | 399 948 648 1286 1127 119 1091 662 697 160 838 1235 1389 755 1236 1384 619 186 22 Remotely . | . . . . . . . . . . . . . . . . . . . Salvage Created 14360 | 198 861 238 1379 776 22 732 418 361 19 349 1675 590 1411 1645 2948 423 205 110 Parts 731 | 19 79 24 90 33 . 40 22 34 2 25 82 25 66 64 109 11 3 3 Haulers Intercepted 19 | . 2 . 4 . 1 . 2 . . . 2 . 2 . 6 . . . Recyclers Shooed 19 | . 3 . 1 . . . 5 . . . 6 . 3 . 1 . . . Parts Field Recycled . | . . . . . . . . . . . . . . . . . . . Retrieved Matter . | . . . . . . . . . . . . . . . . . . . Parts Self-Destructed 36 | . . 24 . . . . . . . . . . . . . 10 2 . Prevented 1 | . . . . . . . . . . . . . . . . 1 . . Kills | -11 -10 -10 -8 -8 -8 -8 -8 -8 -7 -7 -7 -7 -6 -6 -5 -5 -5 -5 ------- Run | Yrd Mat Sub Mat Gar Mat Gar Mat Gar Fac Gar Fac Gar Fac Gar Fac Upp Upp War Combat Hostiles Destroyed 283 | . 21 14 26 21 . 28 3 12 1 20 24 27 14 26 35 2 3 6 Melee 3 | . . . . . . . . . . . 2 . . . 1 . . . Guns 64 | . . . 8 6 . . 2 10 . 1 3 . 3 20 10 . 1 . Cannons 94 | . 8 13 18 15 . 20 1 . . 2 7 7 2 . . 1 . . AOE 117 | . 13 1 . . . 8 . 2 1 17 11 20 7 5 24 . 2 6 Classes Destroyed 22 | 3 6 2 1 2 . 1 . . . 2 . 1 1 . 1 2 . . Worker 35 | 2 7 . 4 . . . . . . . 10 . 9 . 3 . . . Builder 18 | . 3 . 5 . . . . . . . 2 . 5 . 3 . . . Tunneler 10 | 4 2 . 2 . . . . . . . . . 1 . 1 . . . Hauler 19 | . 2 . 4 . 1 . 2 . . . 2 . 2 . 6 . . . Recycler 24 | 1 3 . 3 . . . 2 . . . 8 . 1 . 6 . . . Mechanic 2 | . . . . . . . . . . . . . 1 . 1 . . . Operator 8 | . 2 . 1 . . . . . . . 4 . . . 1 . . . Watcher 12 | . 3 . 4 . . . . . . . 4 . 1 . . . . . Swarmer 77 | . 9 4 7 7 . . 1 7 . 10 3 14 . 7 5 . . 3 Cutter 8 | . . . . . . 3 . . . 4 . . . . 1 . . . Saboteur 3 | . . . . . . . . . . . . . . . 2 . . 1 Grunt 112 | . 12 . 13 8 . 11 . 4 1 3 12 8 10 10 18 . 2 . Brawler 4 | . . . . 1 . . . . . . . . . 2 . . 1 . Duelist 4 | . . . . . . . . . . . . 1 . 1 2 . . . Protector 3 | . . . . . . . . . . 1 1 . . . 1 . . . Sentry 29 | . . 1 5 4 . 6 3 1 . . 3 1 1 3 1 . . . Demolisher 1 | . . . . . . . . . . 1 . . . . . . . . Specialist 1 | . . . . . . . . . . . . . . . . 1 . . Hunter 10 | . . . 1 . . 1 . . . . 2 . 1 2 1 . . 2 Programmer 23 | . . . . 1 . 7 . 1 . 1 3 2 2 1 5 . . . Subdweller 9 | . . 9 . . . . . . . . . . . . . . . . Thug 1 | . . . . . . . . . . . . . . . . . 1 . Butcher 1 | . . . . . . . . . . . . 1 . . . . . . Mutant 1 | . . . . . . . . . . . . . . . . 1 . . Best Kill Streak 16 | 5 7 3 8 5 1 5 3 5 1 7 12 9 16 4 13 1 3 3 Combat Bots Only 9 | . 6 3 4 5 . 5 1 5 1 7 6 9 5 4 7 1 3 3 Max Kills in Single Turn 7 | 1 3 1 2 2 1 2 1 2 1 4 5 3 3 1 7 1 1 2 Gunslinging 1 | . . . . . . . . 1 . . . . . . . . . . Exploded 7 | . 3 1 . . . 2 . 1 1 4 3 3 2 1 7 . 1 2 Melee 1 | . . . . . . . . . . . 1 . . . 1 . . . Uniques/NPCs Destroyed . | . . . . . . . . . . . . . . . . . . . Combat | -11 -10 -10 -8 -8 -8 -8 -8 -8 -7 -7 -7 -7 -6 -6 -5 -5 -5 -5 -------- Run | Yrd Mat Sub Mat Gar Mat Gar Mat Gar Fac Gar Fac Gar Fac Gar Fac Upp Upp War Hostile Shots Fired 1617 | . 55 55 87 87 2 119 22 47 6 43 162 82 102 344 234 45 25 100 Missed 662 | . 18 24 27 34 . 45 13 17 1 17 58 35 47 147 102 22 5 50 Damage Taken 14072 | . 380 643 882 765 30 1207 132 387 87 403 1289 747 842 2085 2756 229 287 921 Core 2766 | . 106 95 176 57 15 137 38 117 15 126 290 106 105 380 543 42 29 389 Absorbed by Shields 1076 | . . . . . . 27 . 26 . 16 . 83 161 226 256 87 95 99 Redirected to Shielding 41 | . 32 9 . . . . . . . . . . . . . . . . Ignored by Resistances 22 | . . . . . . 22 . . . . . . . . . . . . Regen/Repaired (Parts) 220 | . 52 . 110 . . . . . . . 33 . . . 25 . . . Core Remaining (%) 37 | 100 . 19 . . . . . 1 . . . 23 . 42 . . . . Volleys Fired 1219 | 13 91 64 110 111 7 85 62 54 14 56 58 146 54 116 109 33 13 23 Largest 3 | 2 2 2 3 3 2 3 2 3 1 3 3 2 3 3 3 3 3 2 Hottest 225 | 40 78 78 128 146 96 146 56 71 46 121 139 100 100 124 225 118 100 61 Shots Fired 2024 | 26 164 100 255 192 15 159 71 79 14 60 95 157 91 233 211 48 30 24 Gun 767 | 26 29 . 41 58 . 14 38 50 . 4 27 . 42 205 188 16 27 2 Cannon 911 | . 119 95 214 134 15 135 3 . . 19 33 94 21 . . 29 . . Launcher 194 | . 16 5 . . . 9 . 4 2 24 34 27 22 19 20 1 3 8 Special 152 | . . . . . . 1 30 25 12 13 1 36 6 9 3 2 . 14 Kinetic 1423 | 26 148 95 217 134 15 135 37 50 . 23 60 94 63 145 136 16 27 2 Thermal 170 | . . . . 25 . . 4 . . . . . . 60 52 29 . . Explosive 155 | . 16 5 . . . 9 . 4 2 24 24 24 7 8 20 1 3 8 Electromagnetic 124 | . . . 38 33 . 14 . . . . 10 3 15 11 . . . . Robot Hit Streak 29 | 6 5 18 12 23 3 10 7 7 7 12 8 23 27 29 29 5 3 5 Robot Miss Streak 11 | 3 7 3 6 7 1 3 4 5 1 5 3 4 5 11 4 3 3 2 Penetration Max 3 | . . . . . . . . . . . . . 1 . 3 . 1 . Secondary Targets 4 | . . . . . . . . 3 . . . . . . 1 . . . Max Gunslinging Chain 1 | . . . . . . . . 1 . . . . . . 1 . . . Autonomous 45 | . . . . . . . . . . . . . . 45 . . . . Shots Hit Robots 1160 | 16 66 50 138 102 10 77 44 43 9 32 89 103 61 149 131 22 14 4 Core Hits 694 | 8 49 22 74 46 1 42 9 18 3 31 61 52 54 79 117 8 10 10 Critical Kills 8 | . . . . . . . . 1 . . . . . . 7 . . . Critical Parts Destroyed 17 | . . . . . . . . . . . 2 . . 1 12 . 2 . Critical Strikes 77 | . 2 1 8 8 1 5 1 1 . 2 11 10 4 1 19 . 3 . Destroy 24 | . . . . . . . . 1 . . . . . 1 19 . 3 . Blast 50 | . 2 1 8 8 1 5 1 . . 2 8 10 4 . . . . . Smash 3 | . . . . . . . . . . . 3 . . . . . . . Melee Attacks 46 | . . . . . . . . . . . 46 . . . . . . . Impact 41 | . . . . . . . . . . . 41 . . . . . . . Slashing . | . . . . . . . . . . . . . . . . . . . Piercing . | . . . . . . . . . . . . . . . . . . . Sneak Attacks 15 | . . . . . . . . . . . 15 . . . . . . . Combat Hostiles . | . . . . . . . . . . . . . . . . . . . Follow-up Attacks . | . . . . . . . . . . . . . . . . . . . Damage Inflicted 45530 | 198 2098 1201 3295 2292 312 2840 403 760 186 3376 6360 4886 3219 4340 7593 604 708 859 Guns 10036 | 198 189 . 627 480 . 97 348 410 . 41 434 . 620 3491 2472 184 445 . Cannons 13262 | . 1073 1052 2409 1793 312 2157 55 . . 346 857 2200 588 . . 420 . . Explosions 20455 | . 836 149 259 . . 586 . 350 186 2989 3325 2686 1997 849 5121 . 263 859 Melee 1744 | . . . . . . . . . . . 1744 . . . . . . . Ramming 33 | . . . . 19 . . . . . . . . 14 . . . . . Kinetic 19338 | 198 1262 1052 2428 1793 312 2157 388 410 . 387 1291 2200 1208 1955 1668 184 445 . Thermal 4896 | . . . 259 332 . . 15 . . . 196 . 707 1536 1431 420 . . Explosive 16857 | . 836 149 . . . 586 . 350 186 2989 2631 2568 389 557 4494 . 263 859 Electromagnetic 2662 | . . . 608 148 . 97 . . . . 498 118 901 292 . . . . Impact 1744 | . . . . . . . . . . . 1744 . . . . . . . Slashing . | . . . . . . . . . . . . . . . . . . . Piercing . | . . . . . . . . . . . . . . . . . . . Highest Corruption 14 | . . . 1 1 1 4 4 4 1 . 2 2 2 2 14 14 14 14 Average Corruption 4 | . . . 1 1 1 2 4 4 1 . 1 2 2 2 7 14 14 14 Corruption Purged 1 | . . . . . . . . . 1 . . . . . . . . . Corruption Blocked . | . . . . . . . . . . . . . . . . . . . Effects 200 | . . . 2 13 1 29 11 23 . . 5 19 . 14 26 27 10 20 Message Errors 46 | . . . . 4 . 8 1 5 . . 1 7 . 2 6 6 2 4 Matter Fused 42 | . . . . 1 . 4 2 7 . . 2 1 . 4 4 7 2 8 Heat Flow Errors 18 | . . . . 1 . 4 2 3 . . . 1 . 1 1 3 1 1 Energy Discharges 21 | . . . . 2 . 3 . 5 . . 1 2 . 2 2 1 1 2 Parts Rejected 4 | . . . . 1 . . 1 . . . . . . 1 . . . 1 Parts Fused 2 | . . . . 1 . 1 . . . . . . . . . . . . Data Loss (minor) 28 | . . . 2 1 . 5 2 2 . . 1 3 . 2 4 2 1 3 Data Loss (major) 14 | . . . . 2 . 1 1 . . . . 3 . . 3 4 . . Misfires 10 | . . . . . 1 2 1 . . . . 1 . 2 . 1 2 . Alerts 4 | . . . . . . 1 . . . . . . . . . 1 1 1 Misdirections 2 | . . . . . . . . . . . . . . . 1 1 . . Weapon Failures 9 | . . . . . . . 1 1 . . . 1 . . 5 1 . . Overload Shots 2 | . . . . . . . . . . . . . . . 2 . . . Overflow Damage 1807 | . 8 . 25 9 . 41 . . . 163 817 205 132 4 346 6 . 51 Projectiles 190 | . 1 . 21 9 . 31 . . . 11 32 51 28 . . 6 . . Explosions 970 | . 7 . 4 . . 10 . . . 152 138 154 104 4 346 . . 51 Melee 647 | . . . . . . . . . . . 647 . . . . . . . Knockbacks 93 | . 9 9 23 14 . 9 . . . 2 12 14 1 . . . . . Impact 7 | . . . . . . . . . . . 7 . . . . . . . Kinetic 80 | . 9 9 21 11 . 8 . . . 2 5 14 1 . . . . . Secondary 6 | . . . 2 3 . 1 . . . . . . . . . . . . Self-Inflicted Damage 1083 | . 21 42 79 9 . 80 . . . 31 156 193 79 5 328 . . 60 Shots 25 | . 1 2 2 . . 3 . . . 2 2 5 2 1 4 . . 1 Rammed 2 | . . . . 1 . . . . . . . . 1 . . . . . Targets Rammed 2 | . . . . 1 . . . . . . . . 1 . . . . . Kicked . | . . . . . . . . . . . . . . . . . . . Crushed . | . . . . . . . . . . . . . . . . . . . Highest Temperature 497 | . 154 . 293 320 . 497 199 266 35 122 294 296 323 302 249 341 139 109 Average Temperature 73 | . 38 . 88 55 . 120 35 64 20 38 53 67 106 70 69 95 41 58 Received Heat Transfer 3641 | . 108 96 450 342 9 186 45 99 36 54 258 190 224 525 631 49 151 188 Effects 12 | . . . 1 2 . 4 . . . . . 1 3 . . 1 . . Energy Bleed 1 | . . . . . . . . . . . . . 1 . . . . . Interference 4 | . . . 1 2 . . . . . . . 1 . . . . . . Matter Decay 2 | . . . . . . 2 . . . . . . . . . . . . Short Circuit 4 | . . . . . . 2 . . . . . . 2 . . . . . Damage (minor) 1 | . . . . . . . . . . . . . . . . 1 . . Siege Activations . | . . . . . . . . . . . . . . . . . . . Robots Corrupted 3 | . . . . . . . . . . . . . 2 1 . . . . Combat Hostiles 3 | . . . . . . . . . . . . . 2 1 . . . . Parts Fried 22 | . . . 1 . . . . . . . 15 . 4 1 . . . 1 Impact Corruptions 23 | . . . 1 . . . . . . . 22 . . . . . . . Robots Melted 1 | . . . . 1 . . . . . . . . . . . . . . Combat Hostiles . | . . . . . . . . . . . . . . . . . . . Parts Melted 7 | . . . . . . . . 1 . . . 2 1 . 3 . . . Heat Transferred 5664 | . . . 261 851 . . 37 . . . 152 . 500 1674 1745 444 . . Parts Sabotaged 8 | . . . . . . . . . . . . . . . 5 . . 3 Parts Stolen . | . . . . . . . . . . . . . . . . . . . Parts Stripped . | . . . . . . . . . . . . . . . . . . . Power Chain Reactions 4 | . . . 2 . . . . . . . 1 . 1 . . . . . Alert | -11 -10 -10 -8 -8 -8 -8 -8 -8 -7 -7 -7 -7 -6 -6 -5 -5 -5 -5 ------- Run | Yrd Mat Sub Mat Gar Mat Gar Mat Gar Fac Gar Fac Gar Fac Gar Fac Upp Upp War Peak Influence 3352 | 35 569 . 916 1794 1004 1741 1026 1551 940 1516 2031 2708 2098 2740 3352 . . . Initial 1468 | . 22 . . 595 874 652 848 627 814 658 795 1421 1421 1468 1438 . . . Average 1328 | 14 322 . 584 1253 953 1273 935 1168 852 1160 1323 2119 1680 2140 1982 . . . Maximum Alert Level 5 | . 2 . 3 5 3 5 3 4 3 4 5 5 5 5 5 . . . Low Security (%) 4 | 100 28 . 11 . . . . . . . . . . . . . . . Level 1 3 | . 40 . 6 . . . . . . . . . . . . . . . Level 2 8 | . 30 . 48 6 . 5 . 7 . 2 . . . . . . . . Level 3 24 | . . . 32 31 100 28 100 33 100 44 22 . . . . . . . Level 4 26 | . . . . 34 . 41 . 59 . 53 55 10 42 6 32 . . . Level 5 28 | . . . . 26 . 24 . . . . 18 89 49 93 13 . . . High Security 4 | . . . . . . . . . . . 2 . 8 . 53 . . . Max Security . | . . . . . . . . . . . . . . . . . . . Squads Dispatched 55 | . 6 . 7 . 1 . 2 . 2 . 8 . 8 . 21 . . . Investigation 14 | . 5 . 2 . . . . . 1 . 3 . 2 . 1 . . . Extermination 5 | . . . . . . . . . 1 . 2 . 1 . 1 . . . Reinforcement 11 | . 1 . 3 . . . 1 . . . 2 . 3 . 1 . . . Assault 21 | . . . 2 . . . 1 . . . 1 . 2 . 15 . . . Garrison 4 | . . . . . 1 . . . . . . . . . 3 . . . Intercept . | . . . . . . . . . . . . . . . . . . . Searches Triggered . | . . . . . . . . . . . . . . . . . . . Construction Impeded 4 | . . . 2 . . . . . . . . . 1 . 1 . . . Haulers Reinforced 3 | . . . . . . . . . . . 2 . 1 . . . . . Active Scanning Responses . | . . . . . . . . . . . . . . . . . . . Cargo Convoy Interrupts . | . . . . . . . . . . . . . . . . . . . Stealth | -11 -10 -10 -8 -8 -8 -8 -8 -8 -7 -7 -7 -7 -6 -6 -5 -5 -5 -5 --------- Run | Yrd Mat Sub Mat Gar Mat Gar Mat Gar Fac Gar Fac Gar Fac Gar Fac Upp Upp War Distress Signals 8 | . 2 . 2 . . . 1 . . . 1 . 2 . . . . . Communications Jammed 94 | . . . . . . . 43 . . 4 . . . . 47 . . . Distress Signals 94 | . . . . . . . 43 . . 4 . . . . 47 . . . Times Spotted 630 | . 31 26 60 29 4 31 23 34 7 25 43 38 53 55 134 6 8 23 Peak Tracking Total 28 | . 6 3 9 5 2 3 5 5 3 5 7 6 12 12 28 1 4 17 Tactical Retreats 65 | . 1 4 5 4 . . 1 . . 1 3 4 12 16 12 . 2 . Traps | -11 -10 -10 -8 -8 -8 -8 -8 -8 -7 -7 -7 -7 -6 -6 -5 -5 -5 -5 ------- Run | Yrd Mat Sub Mat Gar Mat Gar Mat Gar Fac Gar Fac Gar Fac Gar Fac Upp Upp War Traps Triggered 40 | . 2 1 1 3 . 3 . 6 . 3 1 6 3 7 3 . . 1 Indirectly 1 | . . . . . . . . . . . . . 1 . . . . . Trap Hack Attempts . | . . . . . . . . . . . . . . . . . . . Triggered . | . . . . . . . . . . . . . . . . . . . Disarmed 6 | . . . . . . . . . . . 6 . . . . . . . Reprogrammed 6 | . . . . . 6 . . . . . . . . . . . . . Reused 5 | . . . . . 1 . . . . . . . . 4 . . . . Traps Extracted . | . . . . . . . . . . . . . . . . . . . Installed 14 | . . 3 . . . . . . . . . . . 10 . . 1 . Triggered 19 | . . . . . 1 . . . . . . 1 . 5 . 1 . 11 Most Traps Carried 4 | . . . . . . . . . . . . . . 4 . . . . Machines | -11 -10 -10 -8 -8 -8 -8 -8 -8 -7 -7 -7 -7 -6 -6 -5 -5 -5 -5 ---------- Run | Yrd Mat Sub Mat Gar Mat Gar Mat Gar Fac Gar Fac Gar Fac Gar Fac Upp Upp War Machines Disabled 152 | . 3 2 4 8 . 7 . 8 1 11 35 10 17 13 30 2 . 1 Max in Single Turn 11 | . 1 1 2 2 . 1 . 2 1 2 10 1 10 1 11 1 . 1 Garrison Access 1 | . . . . . . . . . . . 1 . . . . . . . Garrison Relay 30 | . . . . 6 . 5 . 5 . 5 . 5 . 4 . . . . Phase Generator 5 | . . . . 1 . . . 1 . 1 . 1 . 1 . . . . Machines Repaired . | . . . . . . . . . . . . . . . . . . . Machines Dismantled . | . . . . . . . . . . . . . . . . . . . Machines Sabotaged . | . . . . . . . . . . . . . . . . . . . Overloaded Fab Kills . | . . . . . . . . . . . . . . . . . . . Hacking | -11 -10 -10 -8 -8 -8 -8 -8 -8 -7 -7 -7 -7 -6 -6 -5 -5 -5 -5 --------- Run | Yrd Mat Sub Mat Gar Mat Gar Mat Gar Fac Gar Fac Gar Fac Gar Fac Upp Upp War Machines Accessed 78 | . 5 2 11 1 5 3 8 4 6 2 14 3 7 2 4 1 . . Terminals 53 | . 4 . 7 1 4 3 6 4 4 2 9 3 1 2 2 1 . . Fabricators 5 | . . . . . . . . . 1 . 1 . 2 . 1 . . . Repair Stations 5 | . 1 . 2 . . . . . . . 1 . . . 1 . . . Recycling Units 2 | . . . . . . . 1 . . . . . 1 . . . . . Scanalyzers 4 | . . . 1 . . . . . . . 1 . 2 . . . . . Garrison Access 7 | . . . 1 . 1 . 1 . 1 . 2 . 1 . . . . . Total Hacks 231 | . 16 10 41 1 17 6 29 11 21 4 33 7 18 3 13 1 . . Successful 104 | . 7 10 20 1 7 1 11 2 7 1 15 3 7 1 10 1 . . Failed 126 | . 9 . 21 . 10 5 17 9 14 3 18 4 11 2 3 . . . Catastrophic 26 | . . . 3 . 5 1 6 . 3 . 5 . . 1 2 . . . Database Lockouts 1 | . . . . . . . 1 . . . . . . . . . . . Manual 60 | . 8 . 11 . 15 . 14 . 4 . 3 . 4 . . 1 . . Terminals 160 | . 12 . 28 1 16 6 25 11 17 4 20 7 6 3 3 1 . . Fabricators 20 | . . . . . . . . . 3 . 6 . 3 . 8 . . . Repair Stations 15 | . 4 . 7 . . . . . . . 2 . . . 2 . . . Recycling Units 5 | . . . . . . . 3 . . . . . 2 . . . . . Scanalyzers 14 | . . . 5 . . . . . . . 3 . 6 . . . . . Garrison Access 7 | . . . 1 . 1 . 1 . 1 . 2 . 1 . . . . . Terminal Hacks 62 | . 3 10 11 1 6 1 9 2 5 1 5 3 2 1 1 1 . . Record 10 | . . 9 . . . . . . . . . . . . . 1 . . Part Schematic 1 | . . . . . . . . . 1 . . . . . . . . . Robot Schematic 1 | . . . . . . . 1 . . . . . . . . . . . Robot Analysis 12 | . 3 . 4 . 2 . 3 . . . . . . . . . . . Prototype ID Bank 10 | . . . 5 . . . 1 . 2 . 2 . . . . . . . Open Door 1 | . . . . . . . . . . . . 1 . . . . . . Branch Access Points 2 | . . . 1 . . . . . 1 . . . . . . . . . Emergency Access Points 6 | . . . . 1 . 1 . 1 . 1 . 1 . 1 . . . . Terminal Index 4 | . . . . . 1 . 1 . 1 . . . 1 . . . . . Locate Traps 1 | . . . . . . . . . . . . . 1 . . . . . Disarm Traps 1 | . . . . . . . . . . . 1 . . . . . . . Reprogram Traps 1 | . . . . . 1 . . . . . . . . . . . . . Recall Investigation 1 | . . . . . . . 1 . . . . . . . . . . . Recall Reinforcements 1 | . . . . . . . 1 . . . . . . . . . . . Registered Components 1 | . . . . . . . . . . . . . . . 1 . . . Zone Layout 6 | . . . 1 . 2 . 1 . . . 2 . . . . . . . Garrison Registry 1 | . . . . . . . . 1 . . . . . . . . . . Patrol Navigation 1 | . . . . . . . . . . . . 1 . . . . . . Derelict Proto ID Bank 1 | . . 1 . . . . . . . . . . . . . . . . Fabricator Hacks 15 | . . . . . . . . . 1 . 4 . 3 . 7 . . . Network Status 3 | . . . . . . . . . 1 . . . 1 . 1 . . . Load Schematic 6 | . . . . . . . . . . . 2 . 1 . 3 . . . Build 6 | . . . . . . . . . . . 2 . 1 . 3 . . . Repair Station Hacks 12 | . 4 . 4 . . . . . . . 2 . . . 2 . . . Scan Component 6 | . 2 . 2 . . . . . . . 1 . . . 1 . . . Repair 6 | . 2 . 2 . . . . . . . 1 . . . 1 . . . Recycling Unit Hacks 1 | . . . . . . . 1 . . . . . . . . . . . Retrieve Components 1 | . . . . . . . 1 . . . . . . . . . . . Scanalyzer 7 | . . . 4 . . . . . . . 2 . 1 . . . . . Insert Component 4 | . . . 2 . . . . . . . 1 . 1 . . . . . Analyze 3 | . . . 2 . . . . . . . 1 . . . . . . . Garrison Access Hacks 7 | . . . 1 . 1 . 1 . 1 . 2 . 1 . . . . . Unlock Access 6 | . . . 1 . 1 . 1 . 1 . 1 . 1 . . . . . Seal Access 1 | . . . . . . . . . . . 1 . . . . . . . Unauthorized Hacks . | . . . . . . . . . . . . . . . . . . . Terminals . | . . . . . . . . . . . . . . . . . . . Fabricators . | . . . . . . . . . . . . . . . . . . . Repair Stations . | . . . . . . . . . . . . . . . . . . . Recycling Units . | . . . . . . . . . . . . . . . . . . . Scanalyzers . | . . . . . . . . . . . . . . . . . . . Garrison Access . | . . . . . . . . . . . . . . . . . . . Data Cores Recovered 2 | . . . . . . . . . . . 2 . . . . . . . Used 1 | . . . . . . . . . . . 1 . . . . . . . Hacking Detections 64 | . 5 . 10 . 4 2 7 3 6 1 12 2 6 2 4 . . . Full Trace Events 18 | . 3 . 3 . . 1 . 2 1 1 3 . 2 1 1 . . . Feedback Events 2 | . . . . . . . . . 1 . 1 . . . . . . . Corruption 2 | . . . . . . . . . 1 . 1 . . . . . . . Feedback Blocked . | . . . . . . . . . . . . . . . . . . . Robot Schematics Acquired 1 | . . . . . . . 1 . . . . . . . . . . . Robots Built 15 | . . . . . . . . . . . 6 . . . 9 . . . Authchips 5 | . . . . . . . . . . . 2 . . . 3 . . . Time 230 | . . . . . . . . . . . 116 . . . 114 . . . Total Robot Build Rating 45 | . . . . . . . . . . . 18 . . . 27 . . . Part Schematics Acquired 3 | . . . 1 . . . . . 1 . 1 . . . . . . . Parts Built 1 | . . . . . . . . . . . . . 1 . . . . . Authchips . | . . . . . . . . . . . . . . . . . . . Time 58 | . . . . . . . . . . . . . 58 . . . . . Total Part Build Rating 3 | . . . . . . . . . . . . . 3 . . . . . Parts Repaired 6 | . 2 . 2 . . . . . . . 1 . . . 1 . . . Time 207 | . 52 . 83 . . . . . . . 22 . . . 50 . . . Parts Recycled . | . . . . . . . . . . . . . . . . . . . Recycled Matter . | . . . . . . . . . . . . . . . . . . . Retrieved Matter . | . . . . . . . . . . . . . . . . . . . Retrieved Components 9 | . . . . . . . 9 . . . . . . . . . . . Parts Scanalyzed 4 | . . . 2 . . . . . . . 1 . 1 . . . . . Part Schematics Acquired 2 | . . . 1 . . . . . . . 1 . . . . . . . Parts Damaged 1 | . . . . . . . . . . . . . 1 . . . . . Bothacking | -11 -10 -10 -8 -8 -8 -8 -8 -8 -7 -7 -7 -7 -6 -6 -5 -5 -5 -5 ------------ Run | Yrd Mat Sub Mat Gar Mat Gar Mat Gar Fac Gar Fac Gar Fac Gar Fac Upp Upp War Used RIF Installer 10 | . . . . 2 . 2 . 2 . 1 . 1 . 2 . . . . Coupler Efficiency 3 | . . . . . . 1 . . . . . . . 2 . . . . Code Merge 1 | . . . . . . . . 1 . . . . . . . . . . Command Fork 2 | . . . . 1 . . . . . 1 . . . . . . . . Threat Obfuscator 1 | . . . . . . . . 1 . . . . . . . . . . Signal Jammer 1 | . . . . . . 1 . . . . . . . . . . . . Watcher Feeds 1 | . . . . . . . . . . . . 1 . . . . . . Robots Hacked 64 | . . . . . . . 15 15 6 6 3 13 6 . . . . . Non-combat 11 | . . . . . . . 4 . 3 . 2 . 2 . . . . . Combat 53 | . . . . . . . 11 15 3 6 1 13 4 . . . . . Robot Hacks Applied 75 | . . . . . . . 19 17 7 6 6 14 6 . . . . . generate_echo 1 | . . . . . . . 1 . . . . . . . . . . . start_evac 2 | . . . . . . . 1 . . . 1 . . . . . . . map_walls 1 | . . . . . . . 1 . . . . . . . . . . . find_fabricator 1 | . . . . . . . . . . . 1 . . . . . . . locate_stockpiles 1 | . . . . . . . . . . . 1 . . . . . . . map_route 2 | . . . . . . . . . 1 . . . 1 . . . . . relay_feed 1 | . . . . . . . . . 1 . . . . . . . . . find_shortcuts 1 | . . . . . . . . 1 . . . . . . . . . . find_garrison 1 | . . . . . . . 1 . . . . . . . . . . . link_fov 2 | . . . . . . . . . . . 2 . . . . . . . focus_fire 1 | . . . . . . . . . . . . 1 . . . . . . scatter_targeting 3 | . . . . . . . . 2 . . . 1 . . . . . . overload_power 2 | . . . . . . . 1 . . . . 1 . . . . . . amplify_resonance 1 | . . . . . . . . . . . . . 1 . . . . . disable_weapons 2 | . . . . . . . . . . 1 . 1 . . . . . . reboot_system 1 | . . . . . . . . . . . . 1 . . . . . . go_dormant 2 | . . . . . . . 1 1 . . . . . . . . . . overwrite_iff 8 | . . . . . . . . 1 . . . 5 2 . . . . . streamctrl_low 1 | . . . . . . . 1 . . . . . . . . . . . streamctrl_high 4 | . . . . . . . 2 1 . . . 1 . . . . . . formatsys_low 2 | . . . . . . . 2 . . . . . . . . . . . formatsys_high 35 | . . . . . . . 8 11 5 5 1 3 2 . . . . . Relay Couplers Released 131 | . . . . 26 . 23 . 24 . 23 . 20 . 15 . . . . Machine Destruction 124 | . . . . 26 . 20 . 20 . 23 . 20 . 15 . . . . Programmers 7 | . . . . . . 3 . 4 . . . . . . . . . . Attached 39 | . . . . . . 4 6 9 3 7 1 6 2 1 . . . . Merged Code Value 97 | . . . . . . . . 25 . 61 11 . . . . . . . Fabnet Peak Effective % . | . . . . . . . . . . . . . . . . . . . Robots Rewired 20 | . . . 1 . . . . . . . . 13 . 2 . 4 . . Allies Hacked 1 | . . . . . . . . . . . 1 . . . . . . . Hacks Repelled . | . . . . . . . . . . . . . . . . . . . Allies | -11 -10 -10 -8 -8 -8 -8 -8 -8 -7 -7 -7 -7 -6 -6 -5 -5 -5 -5 -------- Run | Yrd Mat Sub Mat Gar Mat Gar Mat Gar Fac Gar Fac Gar Fac Gar Fac Upp Upp War Total Allies 98 | . . 7 1 2 . . 12 14 5 6 7 24 5 2 9 4 . . Largest Group 10 | . . 6 6 2 2 2 4 6 8 10 3 10 6 2 7 4 3 . Highest-Rated Group 296 | . . 114 114 62 62 62 65 142 195 197 75 228 138 296 284 124 93 . Highest-Rated Ally 148 | . . 19 19 31 31 31 29 40 40 40 25 32 32 148 134 31 31 . Total Orders 24 | . . . . . . . . 2 4 13 . 3 2 . . . . . STAY 13 | . . . . . . . . 1 2 8 . 1 1 . . . . . FOLLOW 11 | . . . . . . . . 1 2 5 . 2 1 . . . . . Ally Attacks 456 | . . 2 55 15 11 10 44 51 2 44 36 69 25 22 34 32 4 . Total Damage 9288 | . . 38 709 220 144 125 642 923 53 1475 490 1694 572 625 1130 384 64 . Kills 81 | . . . 8 5 2 2 7 12 2 10 3 12 3 3 9 3 . . Allies Corrupted . | . . . . . . . . . . . . . . . . . . . Allies Melted . | . . . . . . . . . . . . . . . . . . . Intel | -11 -10 -10 -8 -8 -8 -8 -8 -8 -7 -7 -7 -7 -6 -6 -5 -5 -5 -5 ------- Run | Yrd Mat Sub Mat Gar Mat Gar Mat Gar Fac Gar Fac Gar Fac Gar Fac Upp Upp War Robot Analysis Total 12 | . 3 . 4 . 2 . 3 . . . . . . . . . . . Derelict Logs Recovered 7 | . . 3 . . . . . . . . . . . . . 3 1 . Drone Launches . | . . . . . . . . . . . . . . . . . . . Drone Recoveries . | . . . . . . . . . . . . . . . . . . . Exploration | -11 -10 -10 -8 -8 -8 -8 -8 -8 -7 -7 -7 -7 -6 -6 -5 -5 -5 -5 ------------- Run | Yrd Mat Sub Mat Gar Mat Gar Mat Gar Fac Gar Fac Gar Fac Gar Fac Upp Upp War Turns Passed 17206 | 144 903 2153 1283 1399 191 1593 613 1061 259 917 1035 1389 689 1259 997 586 243 492 Spaces Moved 22365 | 108 750 3120 1821 1906 183 1583 668 1375 375 1490 1639 1496 1126 1401 1525 1048 551 200 Core 7 | 5 . . . . . . . . . . . . . . . . . 2 Treads . | . . . . . . . . . . . . . . . . . . . Legs . | . . . . . . . . . . . . . . . . . . . Wheels 533 | 103 430 . . . . . . . . . . . . . . . . . Hover 13214 | . 320 3117 839 1906 183 1578 64 65 375 325 906 1496 1126 914 . . . . Flight 8611 | . . 3 982 . . 5 604 1310 . 1165 733 . . 487 1525 1048 551 198 Fastest Speed 24 | 50 56 56 27 40 43 45 32 29 56 27 27 38 33 24 29 29 29 34 Average Speed 46 | 83 69 58 40 43 85 75 34 39 56 34 36 42 40 46 31 32 34 35 Slowest Speed 192 | 100 80 176 176 103 105 116 117 109 56 109 180 171 48 192 105 34 114 120 Overloaded Moves . | . . . . . . . . . . . . . . . . . . . Propulsion Burnouts . | . . . . . . . . . . . . . . . . . . . Robots Hopped 73 | . . . 28 . . . 14 1 . . 4 . . . 21 2 . 3 Cave-ins Triggered . | . . . . . . . . . . . . . . . . . . . Exploration Rate (%) 62 | 4 93 95 69 95 20 91 58 85 10 98 46 96 27 97 26 90 70 17 Regions Visited 18 Branch Regions 4 Pre-discovered Areas 1 | . . 1 . . . . . . . . . . . . . . . . Known Exits Taken 7 | . . . 1 . 1 . 1 . 1 . 1 . 1 . 1 . . . Unknown Exits Taken 5 | 1 1 1 . . . . . . . . . . . . . 1 1 . Scrap Searched 22 | . . 15 . . . . . . . . . . . . . 5 2 . Spaces Dug 54 | . . 7 . . . . . . . . 3 . 29 . 2 13 . . Terrain Destroyed 2314 | . 87 32 62 76 3 44 1 135 6 306 434 253 124 222 356 28 38 107 Melee 3 | . . . . . . . . . . . 3 . . . . . . . Projectile 116 | . 8 1 9 . 3 . 1 . . 6 12 23 7 4 19 18 5 . AOE 2194 | . 79 31 53 76 . 44 . 135 6 300 419 230 117 218 336 10 33 107 Terrain Rammed . | . . . . . . . . . . . . . . . . . . . Walls Destroyed . | . . . . . . . . . . . . . . . . . . . Machines Disabled . | . . . . . . . . . . . . . . . . . . . Actions | -11 -10 -10 -8 -8 -8 -8 -8 -8 -7 -7 -7 -7 -6 -6 -5 -5 -5 -5 --------- Run | Yrd Mat Sub Mat Gar Mat Gar Mat Gar Fac Gar Fac Gar Fac Gar Fac Upp Upp War Total 27340 | 133 964 3340 2118 2307 206 1841 975 1845 415 1835 1909 2108 1283 1842 1816 1246 580 577 Wait 2240 | . 69 92 82 172 1 68 222 230 17 169 87 300 38 149 94 99 9 342 Move 22206 | 107 749 3119 1767 1903 182 1582 639 1372 374 1488 1631 1494 1125 1399 1488 1043 550 194 Hop 64 | . . . 25 . . . 14 1 . . 4 . . . 15 2 . 3 Pick Up 164 | 4 14 13 21 10 2 13 3 13 2 9 13 7 7 17 11 3 . 2 Fast Attach 250 | 7 8 15 26 12 4 15 13 11 . 22 18 10 16 28 32 9 . 4 Attach 103 | . 1 3 7 7 1 10 2 8 3 5 7 3 2 18 12 7 3 4 Detach 108 | 1 . 2 13 6 2 6 2 11 1 9 5 4 2 20 5 13 3 3 Swap 139 | . 14 3 11 18 1 5 5 14 1 5 16 6 10 5 16 7 . 2 Drop 280 | 1 18 25 34 27 6 22 8 21 . 17 22 9 20 28 16 5 1 . Fire 1219 | 13 91 64 110 111 7 85 62 54 14 56 58 146 54 116 109 33 13 23 Melee 46 | . . . . . . . . . . . 46 . . . . . . . Ram 2 | . . . . 1 . . . . . . . . 1 . . . . . Kick . | . . . . . . . . . . . . . . . . . . . Crush . | . . . . . . . . . . . . . . . . . . . Escape Stasis 371 | . . . . 39 . 35 . 103 . 54 . 63 7 52 18 . . . Rewire 129 | . . . 18 1 . . 5 7 3 1 2 66 1 . . 25 . . Trap 14 | . . 3 . . . . . . . . . . . 10 . . 1 . Miscellaneous 5 | . . 1 4 . . . . . . . . . . . . . . . Route ------- -11/Scrapyard -10/Materials (discovered 4 exits: [*Mat x2] / [*Min] / *Sub) -10/Subcaves (discovered 3 exits: *Mat x2 / [*Rec]) -8/Materials -8/Garrison (discovered 3 exits: *Mat x3) -8/Materials -8/Garrison (discovered 4 exits: *Fac x3 / *Mat) -8/Materials (discovered 2 exits: *Fac / Gar) -8/Garrison (discovered 3 exits: *Fac x3) -7/Factory (discovered 6 exits: Fac / Sto x2 / *Low x2 / Gar) -7/Garrison (discovered 3 exits: *Fac x3) -7/Factory (discovered 4 exits: *Fac x2 / *Low / Gar) -7/Garrison (discovered 3 exits: *Fac x3) -6/Factory (discovered 2 exits: Fac / Gar) -6/Garrison (discovered 3 exits: *Fac x3) -5/Factory (discovered 2 exits: [*Fac] / *Upp) -5/Upper Caves -5/Upper Caves (discovered 2 exits: [*Fac] / [*War]) -5/Warlord (discovered 1 exit: [*Pro]) History --------- Turn | Location | Event 16 | -11/Scrapyard | Discovered new exit (range 16) 145 | -11/Scrapyard | Entered Materials 300 | -10/Materials | Build established: Mutant 646 | -10/Materials | Discovered new exit (range 15) 800 | -10/Materials | Discovered new exit (range 8) 844 | -10/Materials | Repaired Hover Unit 872 | -10/Materials | Repaired Weapon Shielding 937 | -10/Materials | Discovered new exit (range 18) 1027 | -10/Materials | Discovered new exit (range 10) 1048 | -10/Materials | Entered Subcaves 1116 | -10/Subcaves | Core integrity fell below 50% 1165 | -10/Subcaves | Shifting Twisted Machinery released Piercing Trap 1168 | -10/Subcaves | Shifting Twisted Machinery released Riot Gun 1170 | -10/Subcaves | Shifting Twisted Machinery released Sub. Beam Cannon 1237 | -10/Subcaves | A swath of the cavern ceiling suddenly collapsed 1289 | -10/Subcaves | Disturbed a concealed Subdweller 1338 | -10/Subcaves | A Subdweller sparked back to life 1338 | -10/Subcaves | A Subdweller sparked back to life 1378 | -10/Subcaves | Visited 4L-MR0's lab 1388 | -10/Subcaves | Found Cargo Legs 1506 | -10/Subcaves | Found Power Bank 1829 | -10/Subcaves | Shifting Twisted Machinery released Sub. Monowheel 1858 | -10/Subcaves | Learned location of Zion (-7) 1858 | -10/Subcaves | Met a Zionite searching for "candidates" 1858 | -10/Subcaves | Learned 2 Materials zone layouts 1873 | -10/Subcaves | A swath of the cavern ceiling suddenly collapsed 2079 | -10/Subcaves | Discovered new exit (range 11) 2165 | -10/Subcaves | Disturbed a concealed Subdweller 2166 | -10/Subcaves | Core integrity fell below 20% 2256 | -10/Subcaves | Visited Clippyterm 2295 | -10/Subcaves | Visited triangular shrine 2299 | -10/Subcaves | Found Prototype Device 2299 | -10/Subcaves | Identified V3-11A's Pendant 2304 | -10/Subcaves | Befriended Subdweller 2324 | -10/Subcaves | Shifting Twisted Machinery released Flamer 2336 | -10/Subcaves | Shifting Twisted Machinery released Sub. Optics 2479 | -10/Subcaves | Befriended Subdweller 2604 | -10/Subcaves | Befriended Subdweller 2692 | -10/Subcaves | Discovered new exit (range 13) 2694 | -10/Subcaves | Befriended Subdweller 2699 | -10/Subcaves | Befriended Subdweller 2699 | -10/Subcaves | Befriended Subdweller 2734 | -10/Subcaves | Befriended Subdweller 2775 | -10/Subcaves | Learned Materials terminal intel 2876 | -10/Subcaves | Discovered new exit (range 6) 3047 | -10/Subcaves | Learned Materials stockpile data 3201 | -10/Subcaves | Entered Materials 3201 | -8/Materials | Accompanied by 6 allies 3201 | -8/Materials | Evolved 4 slots: Propulsion x2, Utility x1, Weapon x1 3204 | -8/Materials | Loaded intel: 12 terminal locations 3414 | -8/Materials | Lost 3 allies 3808 | -8/Materials | Identified exit to Garrison 3823 | -8/Materials | Build established: Sprinter 3851 | -8/Materials | Repaired Imp. Light Cannon 3943 | -8/Materials | Repaired Imp. Flight Unit? 3980 | -8/Materials | Attached Cargo Legs, gained temporary slots: Utility x2 4340 | -8/Materials | Build established: Tank 4401 | -8/Materials | First assault squad dispatched 4484 | -8/Materials | Entered Garrison 4505 | -8/Garrison | Garrison Relay disabled 4537 | -8/Garrison | Installed Relay Interface Framework 4580 | -8/Garrison | Phase Generator disabled 4632 | -8/Garrison | Triggered checkpoint 4733 | -8/Garrison | Triggered checkpoint 4818 | -8/Garrison | Discovered new exit (range 12) 4832 | -8/Garrison | Triggered checkpoint 4957 | -8/Garrison | Garrison Relay disabled 4964 | -8/Garrison | Expanded RIF knowledge: Command Fork 5000 | -8/Garrison | Discovered new exit (range 10) 5004 | -8/Garrison | Triggered checkpoint 5019 | -8/Garrison | Garrison Relay disabled 5050 | -8/Garrison | Triggered checkpoint 5050 | -8/Garrison | Triggered checkpoint 5317 | -8/Garrison | Discovered new exit (range 14) 5369 | -8/Garrison | Build established: Mutant 5372 | -8/Garrison | Rescued a captive Derelict 5373 | -8/Garrison | Rescued a captive Derelict 5420 | -8/Garrison | Garrison Relay disabled 5443 | -8/Garrison | Garrison Relay disabled 5462 | -8/Garrison | Triggered checkpoint 5464 | -8/Garrison | Garrison Relay disabled 5496 | -8/Garrison | Triggered checkpoint 5883 | -8/Garrison | Entered Materials 5883 | -8/Materials | Accompanied by 2 allies 5953 | -8/Materials | Garrison activated, responded to threat 6048 | -8/Materials | Identified exit to Garrison 6074 | -8/Materials | Entered Garrison 6074 | -8/Garrison | Accompanied by 2 allies 6131 | -8/Garrison | Build established: Tank 6140 | -8/Garrison | Triggered checkpoint 6229 | -8/Garrison | Core integrity fell below 50% 6270 | -8/Garrison | Triggered checkpoint 6299 | -8/Garrison | Garrison Relay disabled 6328 | -8/Garrison | Discovered new exit (range 15) 6403 | -8/Garrison | Expanded RIF knowledge: Signal Jamming 6484 | -8/Garrison | Triggered checkpoint 6566 | -8/Garrison | Triggered checkpoint 6611 | -8/Garrison | Garrison Relay disabled 6629 | -8/Garrison | Expanded RIF knowledge: Coupler Efficiency 6675 | -8/Garrison | Discovered new exit (range 11) 6726 | -8/Garrison | Triggered checkpoint 6772 | -8/Garrison | Build established: Scavenger-Tank 6846 | -8/Garrison | Triggered checkpoint 6902 | -8/Garrison | Triggered checkpoint 6975 | -8/Garrison | Lost 5 parts (1p2n1u1w) 7047 | -8/Garrison | Discovered new exit (range 10) 7057 | -8/Garrison | Triggered checkpoint 7065 | -8/Garrison | Discovered new exit (range 5) 7180 | -8/Garrison | Spotted B-75 Beast 7192 | -8/Garrison | Triggered checkpoint 7196 | -8/Garrison | Garrison Relay disabled 7405 | -8/Garrison | Triggered checkpoint 7588 | -8/Garrison | Garrison Relay disabled 7667 | -8/Garrison | Entered Materials 7881 | -8/Materials | Lost 3 allies 7987 | -8/Materials | Lost 3 allies 8067 | -8/Materials | First assault squad dispatched 8075 | -8/Materials | Discovered new exit (range 15) 8096 | -8/Materials | Central database locked down 8254 | -8/Materials | Identified exit to Garrison 8280 | -8/Materials | Entered Garrison 8280 | -8/Garrison | Accompanied by 1 ally 8332 | -8/Garrison | Triggered checkpoint 8354 | -8/Garrison | Core integrity fell below 20% 8382 | -8/Garrison | Expanded RIF knowledge: Code Merge 8391 | -8/Garrison | Discovered new exit (range 8) 8403 | -8/Garrison | Garrison Relay disabled 8412 | -8/Garrison | Triggered checkpoint 8442 | -8/Garrison | Build established: Scavenger-Sprinter 8532 | -8/Garrison | Rescued a captive Derelict 8534 | -8/Garrison | Rescued a captive Derelict 8538 | -8/Garrison | Triggered checkpoint 8666 | -8/Garrison | Triggered checkpoint 8666 | -8/Garrison | Triggered checkpoint 8705 | -8/Garrison | Triggered checkpoint 8781 | -8/Garrison | Discovered new exit (range 12) 8812 | -8/Garrison | Phase Generator disabled 8817 | -8/Garrison | Expanded RIF knowledge: Threat Obfuscation 8829 | -8/Garrison | Garrison Relay disabled 8867 | -8/Garrison | Garrison Relay disabled 8871 | -8/Garrison | Discovered new exit (range 70) 8871 | -8/Garrison | Discovered new exit (range 12) 8871 | -8/Garrison | Discovered new exit (range 43) 9128 | -8/Garrison | Garrison Relay disabled 9138 | -8/Garrison | Triggered checkpoint 9341 | -8/Garrison | Entered Factory 9341 | -7/Factory | Accompanied by 6 allies 9341 | -7/Factory | Evolved 2 slots: Propulsion x1, Utility x1 9423 | -7/Factory | Identified exit to Storage 9423 | -7/Factory | Identified exit to Lower Caves 9428 | -7/Factory | Discovered new exit (range 29) 9582 | -7/Factory | Identified exit to Garrison 9600 | -7/Factory | Entered Garrison 9600 | -7/Garrison | Accompanied by 8 allies 9622 | -7/Garrison | Phase Generator disabled 9648 | -7/Garrison | Triggered checkpoint 9690 | -7/Garrison | Build established: Bothacker-Gunner 9731 | -7/Garrison | Lost 5 allies 9735 | -7/Garrison | Triggered checkpoint 9754 | -7/Garrison | Triggered checkpoint 9791 | -7/Garrison | Spotted B-75 Beast 9832 | -7/Garrison | Allies destroyed B-75 Beast 9901 | -7/Garrison | Found Unknown Device 9901 | -7/Garrison | Identified Quantum Capacitor 9916 | -7/Garrison | Triggered checkpoint 9944 | -7/Garrison | Destroyed 7 combat bots 9992 | -7/Garrison | Triggered checkpoint 10028 | -7/Garrison | Garrison Relay disabled 10035 | -7/Garrison | Garrison Relay disabled 10148 | -7/Garrison | Discovered new exit (range 14) 10154 | -7/Garrison | Expanded RIF knowledge: Command Fork 10225 | -7/Garrison | Discovered new exit (range 15) 10283 | -7/Garrison | Triggered checkpoint 10300 | -7/Garrison | Garrison Relay disabled 10342 | -7/Garrison | Triggered checkpoint 10342 | -7/Garrison | Discovered new exit (range 9) 10362 | -7/Garrison | Triggered checkpoint 10434 | -7/Garrison | Garrison Relay disabled 10517 | -7/Garrison | Entered Factory 10517 | -7/Factory | Accompanied by 1 ally 10731 | -7/Factory | Lost 3 parts (1u2w) 10812 | -7/Factory | Fabricated C-17 Slicer (x3) 10826 | -7/Factory | Discovered exit to Lower Caves (range 6) 10872 | -7/Factory | Fabricated C-17 Slicer (x3) 10942 | -7/Factory | Lost 6 allies 11210 | -7/Factory | Found Unknown Protection 11210 | -7/Factory | Identified Powered Armor 11317 | -7/Factory | First assault squad dispatched 11375 | -7/Factory | Discovered new exit (range 11) 11441 | -7/Factory | Repaired Proton Missile Launcher 11445 | -7/Factory | Discovered new exit (range 4) 11486 | -7/Factory | Core integrity fell below 50% 11522 | -7/Factory | High security lockdown imminent 11552 | -7/Factory | Identified exit to Garrison 11552 | -7/Factory | Entered Garrison 11555 | -7/Garrison | Triggered checkpoint 11574 | -7/Garrison | Triggered checkpoint 11617 | -7/Garrison | Garrison Relay disabled 11662 | -7/Garrison | Triggered checkpoint 11672 | -7/Garrison | Garrison Relay disabled 11710 | -7/Garrison | Lost 4 allies 11755 | -7/Garrison | Build established: Gunner 11774 | -7/Garrison | Expanded RIF knowledge: Watcher Feeds 11790 | -7/Garrison | Triggered checkpoint 11814 | -7/Garrison | Triggered checkpoint 11858 | -7/Garrison | Garrison Relay disabled 11878 | -7/Garrison | Triggered checkpoint 12137 | -7/Garrison | Discovered new exit (range 11) 12197 | -7/Garrison | P-60 Hacker assimilated allied TN-8SV(l) 12212 | -7/Garrison | Triggered checkpoint 12236 | -7/Garrison | Triggered checkpoint 12248 | -7/Garrison | Destroyed 9 combat bots 12346 | -7/Garrison | Lost 3 allies 12418 | -7/Garrison | Phase Generator disabled 12482 | -7/Garrison | Triggered checkpoint 12486 | -7/Garrison | Garrison Relay disabled 12500 | -7/Garrison | Discovered new exit (range 13) 12573 | -7/Garrison | Triggered checkpoint 12616 | -7/Garrison | Discovered new exit (range 13) 12632 | -7/Garrison | Garrison Relay disabled 12632 | -7/Garrison | Triggered checkpoint 12793 | -7/Garrison | Build established: Bothacker-Gunner 12941 | -7/Garrison | Entered Factory 12941 | -6/Factory | Accompanied by 6 allies 12941 | -6/Factory | Evolved 2 slots: Power x1, Propulsion x1 13019 | -6/Factory | Fabricated Aerolev Unit (x1) 13042 | -6/Factory | Discovered new exit (range 24) 13280 | -6/Factory | Identified exit to Garrison 13291 | -6/Factory | First assault squad dispatched 13415 | -6/Factory | Lost 3 parts (3w) 13573 | -6/Factory | High security lockdown imminent 13630 | -6/Factory | Entered Garrison 13636 | -6/Garrison | Triggered checkpoint 13667 | -6/Garrison | Garrison Relay disabled 13710 | -6/Garrison | Triggered checkpoint 13712 | -6/Garrison | Phase Generator disabled 13720 | -6/Garrison | Spotted B-75 Beast 13818 | -6/Garrison | Triggered checkpoint 13835 | -6/Garrison | Lost 3 parts (1n1u1w) 13845 | -6/Garrison | Garrison Relay disabled 13900 | -6/Garrison | Discovered new exit (range 8) 14107 | -6/Garrison | Lost 4 parts (1p1n1u1w) 14149 | -6/Garrison | Lost 3 parts (3n) 14172 | -6/Garrison | Found Fusion Bomb Launcher 14402 | -6/Garrison | Triggered checkpoint 14490 | -6/Garrison | Triggered checkpoint 14571 | -6/Garrison | Lost 5 parts (2p1n2u) 14629 | -6/Garrison | Discovered new exit (range 3) 14715 | -6/Garrison | Core integrity fell below 50% 14745 | -6/Garrison | Lost 3 parts (3n) 14752 | -6/Garrison | Triggered checkpoint 14754 | -6/Garrison | Discovered new exit (range 12) 14756 | -6/Garrison | Expanded RIF knowledge: Coupler Efficiency 14766 | -6/Garrison | Expanded RIF knowledge: Coupler Efficiency 14776 | -6/Garrison | Spotted B-75 Beast 14789 | -6/Garrison | Spotted B-75 Beast 14796 | -6/Garrison | Rewired B-90 Cyclops 14803 | -6/Garrison | Rewired B-90 Cyclops 14804 | -6/Garrison | Allies destroyed B-75 Beast 14829 | -6/Garrison | Garrison Relay disabled 14889 | -6/Garrison | Entered Factory 14889 | -5/Factory | Accompanied by 1 ally 14889 | -5/Factory | Evolved 2 slots: Propulsion x1, Utility x1 14913 | -5/Factory | Build established: Scavenger-Sprinter 14914 | -5/Factory | Discovered new exit (range 15) 15055 | -5/Factory | Fabricated C-17 Slicer? 15105 | -5/Factory | Fabricated C-17 Slicer (x3) 15134 | -5/Factory | Repaired Lgt. Fission Core 15146 | -5/Factory | Lost 3 allies 15156 | -5/Factory | Fabricated C-17 Slicer? 15189 | -5/Factory | First assault squad dispatched 15216 | -5/Factory | Lost 6 allies 15351 | -5/Factory | High security lockdown imminent 15431 | -5/Factory | High security lockdown engaged 15464 | -5/Factory | Garrison activated, responded to threat 15579 | -5/Factory | Lost 4 parts (1n1u2w) 15636 | -5/Factory | Identified exit to Upper Caves 15650 | -5/Factory | System corruption reached 10% 15671 | -5/Factory | Spotted B-75 Beast 15676 | -5/Factory | Discovered new exit (range 10) 15709 | -5/Factory | Destroyed 7 combat bots 15860 | -5/Factory | Core integrity fell below 50% 15886 | -5/Factory | Entered Upper Caves 15890 | -5/Upper Caves | Learned location of 1 exit from Factory 15911 | -5/Upper Caves | Lost 6 parts (1p2n3w) 16041 | -5/Upper Caves | Learned Factory terminal intel 16047 | -5/Upper Caves | Acquired the password to a Derelict Tinkerer's latest research 16051 | -5/Upper Caves | Found Prototype Special Weapon 16072 | -5/Upper Caves | Build established: Mutant 16100 | -5/Upper Caves | Attacked by a delusional Derelict stockpiling Unaware 16134 | -5/Upper Caves | Identified Molecular Deconstructor 16189 | -5/Upper Caves | Caught by Unaware searching for contraband prototypes 16311 | -5/Upper Caves | Discovered new exit (range 13) 16314 | -5/Upper Caves | Learned location of 1 exit from Proximity Caves 16346 | -5/Upper Caves | Attracted the attention of an 0b10 checkpoint 16472 | -5/Upper Caves | Entered another Upper Caves area 16472 | -5/Upper Caves | Accompanied by 3 allies 16511 | -5/Upper Caves | Lost 3 allies 16535 | -5/Upper Caves | Discovered new exit (range 5) 16546 | -5/Upper Caves | Learned Factory security intel 16714 | -5/Upper Caves | Discovered new exit (range 4) 16715 | -5/Upper Caves | Entered Warlord 16732 | -5/Warlord | RIF detected upon attempting to enter Warlord's base 16732 | -5/Warlord | Attacked by Warlord forces 16813 | -5/Warlord | Discovered new exit (range 15) 16903 | -5/Warlord | Warlord's base attacked by MAIN.C 17191 | -5/Warlord | Core integrity fell below 20% 17206 | -5/Warlord | Spotted Striker 17207 | -5/Warlord | Spotted Executioner 17207 | -5/Warlord | Destroyed by Striker with Compact Linear Accelerator Last Messages --------------- 17181_ Critical hit (Destroy). 17181_ Hvy. Missile Launcher destroyed. 17183_ The unstable cave ceiling collapses. 17183_ Adv. Shield Generator destroyed. 17184_ Acquired Cesium-ion Thruster. 17184_ Med. Storage Unit destroyed. 17185_ S-27 Virus destroyed. 17187_ Acquired Cesium-ion Thruster. 17188_ G-67 Veteran destroyed. 17189_ The unstable cave ceiling collapses. 17193_ ANNOUNCEMENT: MAIN.C reinforcements approaching through caves, arriving soon. 17198_ Nuclear Pulse Array destroyed. 17200_ The unstable cave ceiling collapses. 17202_ Acquired 2 matter. 17202_ Cesium-ion Thruster destroyed. 17203_ ANNOUNCEMENT: Detected 2 Mixed squads, 1 Demolisher squad, 1 Melee squad, with prototype support. 17203_ Acquired Cesium-ion Thruster. 17207_ Cesium-ion Thruster destroyed. Map ----- +----------------------------------------------------+ | ??????????????????????????????????????? | | ??????????????????????????????????????? | | ???????#############??????????????????? | | ???????" #??????????????????? | | ???????" #??????????????????? | | ???????########## #??????????????????? | | ????????????????# #??????????????????? | | ????????????????# #??????????????????? | | ???????????????## ###????????????????? | | ??????????????### # ##???????????????? | | ??????????????# #???????????????? | | ?????????#??#### / * #???????????????? | | ???????### ## # !% #??????????? ##?? | | ?????# # # [g/ ###?????? < ?? | | ???# ]g #????? bdE??? | | ?????# # ### ##???? d#??? | | ???????#?????## ##??? Kgg#???? | | ??????????????### !=# #?? #???? | | ?????????????## # [ %% #### #????? | | ?????????????# # *! ## # #?????? | | ?????????????# ## ##????? | | ?????????????## #???? | | ??????????????# ##???????? | | ??????????????# # % ###??????? | | ??????????????## # [ #??????? | | ??????????????##### ## @* * ##??????? | | ??????????????????##?# % %##???????? | | ??#"?????????????????## [ #?????##? | | ??#""####?????????????## ;#??? #? | | ?? "" "############??# ## ##? #?? | | ? "" """"""""""""#??#####; # #??? | | "" """"""""""""#?####?## #???? | | ### ### #???? | | + ## #??? | | + ##?# #??? | | #### ##??? #??? | | "" """"" " """#??## #???? #??? | | ? "" """"""""""""#???# #???? ??? | | ?? "" "############???# ##???? #?? | | ???""####??????????????## #????? #?? | | ???"??????????????????## #???? ???? | | ??????????????????????# ##???? ???? | | ????????????????????### ##????? ???? | | ???????????????????##" #?????? #???? | | ???????????????????# " ##????? #???? | | ???????????????????# " ""#????? #???? | | ???????????????????# " " #????? ##??? | | ???????????????????##" "##???## #??? | | ???????????????????##^ ##??## #??? | | ???????????????????# ##?# #??? | +----------------------------------------------------+ Best States ------------- Heat Dissipation 75 Coolant Potential 50 Energy Generation 31 Energy Capacity 520 Matter Stores 300 Matter Capacity 300 Sight Range 18 Terrain Scan Density 10 Power Amplification 20 Additional Mass Support 6 Armor Coverage 800 Resistance: TH 10 Propulsion Shielding 33 Weapon Shielding 33 Phase Shifting 10 Evasion (%) 65 Targeting Accuracy 8 Launcher Accuracy 60 Target Analysis 5 Armor Integrity Analysis 40 Recoil Reduction 6 Offensive Hacking 20 Defensive Hacking 14 Relay Coupler Types 4 Relay Coupler Value 188 Authchip Count 3 Item Schematics ----------------- Aerolev Unit | -8/Materials | Scanalyzed Lightning Gun | -7/Factory | Hacked Hvy. Gauss Cannon | -7/Factory | Scanalyzed Robot Schematics ------------------ C-17 Slicer | -8/Materials | Hacked Fabricated ------------ C-17 Slicer | x3 | -7/Factory | Authchip C-17 Slicer | x3 | -7/Factory | Authchip Aerolev Unit | x1 | -6/Factory C-17 Slicer | x3 | -5/Factory | Authchip C-17 Slicer | x3 | -5/Factory | Authchip C-17 Slicer | x3 | -5/Factory | Authchip Alien Tech Used ----------------- None Achievements -------------- Pwned Challenges ------------ None Game ------ Seed TimingZioniteCore Manual? 0 Play Time 06:04:16 Cumulative 428.8 hours Start 2024.06.23 @ 08:19:37 End 2024.06.24 @ 07:54:44 Sessions 5 Manual Loads 0 Difficulty Rogue Special Mode None Game No. 155 Rogue 155 Adventurer 0 Explorer 0 Win Type - Total 3 Types 0/0/2/1/0/0/0/0/0 Lore% 71 Gallery% 79 Achievement% 64 Wizard Run 0 Options --------- Layout 0 ASCII 0 Keyboard 1 Movement Arrows Keybinds 0 Fullscreen 1 Font 12/Proggy Map View 83x54 Zoom Use 0% Tactical HUD 1 Map Filters NONE Filters NONE Steam 0 RUN: 12379826-c61d-40d6-9184-1e4987561033